{"text_format":"2","workbook":"xlsx","n_sheets":5,"sheets":["一覧","共通設計","1","2","3"],"not_rendered":{"charts":0,"images":0,"macros":0,"external_links":0,"defined_names":1,"comments":0,"pivot_tables":0},"unopened":[],"bounds":{"document_bytes":16777216,"sheet_cells":100000,"run_cost":"one","rows_first":2000,"rows_last":500,"rows_between":2000,"halvings":0,"cell_chars":16384,"cell_head_chars":4096},"cells_cut":0,"cells_raw":0,"read":"whole","date_system":"1900"}

{"sheet":"一覧","index":0,"n_rows":17,"n_cols":7,"rows_kept":17,"cut":false,"hidden":false,"merged":[]}
["#","分類１","分類２","名称","内容","URL","詳細"]
[{"$f":"ROW()-1","v":1},"定期選考",null,"一斉通知","対象に設定した申込者へメール通知を行う","/season-ticket-contract-selection/notice-to-candidates",{"$f":"IF(ISREF(INDIRECT(A2&\"!a1\")),HYPERLINK(\"#\"&\"'\"&A2&\"'\"&\"!a1\",\"■\"),\"\")","v":"■"}]
[{"$f":"ROW()-1","v":2},"メール送信",null,"メール送信依頼","メール送信依頼を行う","/email/send",{"$f":"IF(ISREF(INDIRECT(A3&\"!a1\")),HYPERLINK(\"#\"&\"'\"&A3&\"'\"&\"!a1\",\"■\"),\"\")","v":"■"}]
[3,"領収証",null,"領収証発行","領収証を発行する","/receipt/create",{"$f":"IF(ISREF(INDIRECT(A4&\"!a1\")),HYPERLINK(\"#\"&\"'\"&A4&\"'\"&\"!a1\",\"■\"),\"\")","v":"■"}]
[4,{"$nulls":5},""]
[5,{"$nulls":5},""]
[6,{"$nulls":5},""]
[7,{"$nulls":5},""]
[8,{"$nulls":5},""]
[9,{"$nulls":5},""]
[10,{"$nulls":5},""]
[11,{"$nulls":5},""]
[12,{"$nulls":5},""]
[13,{"$nulls":5},""]
[14,{"$nulls":5},""]
[15,{"$nulls":5},""]
[16,{"$nulls":5},""]

{"sheet":"共通設計","index":1,"n_rows":27,"n_cols":7,"rows_kept":27,"cut":false,"hidden":false,"merged":[]}
["■概要"]
[null,"KINTONEからMyPageへのWebAPI仕様を設計"]
[]
[]
["■URL"]
[null,"ベースURL"]
[null,null,"https://（ドメイン）/api-from-kintone/"]
[]
[null,"インターフェース毎にベースURL以降のパスが異なる"]
[]
["■リクエストヘッダ"]
[null,"Content-Type: application/json"]
[]
["■リクエストボディ"]
[null,"JSON形式でリクエストボディに設定する。"]
[null,"レイアウトはインターフェース毎に異なる。"]
[]
[null,"各インターフェース共通の送信項目"]
[null,null,"token : 認証用トークン",null,null,null,"※設定値は当設計書には記載を避ける"]
[]
[]
["■レスポンス"]
[null,"各インターフェース共通で下記を返却する"]
[null,null,"RESULT: 結果コード"]
[null,null,null,"SUCCESS　成功"]
[null,null,null,"FAILED 失敗"]
[null,null,null,"UNAUTHORIZED 認証失敗"]

{"sheet":"1","index":2,"n_rows":3,"n_cols":6,"rows_kept":3,"cut":false,"hidden":false,"merged":[]}
[{"$f":"HYPERLINK(\"#一覧!A1\",\"一覧へ\")","v":"一覧へ"}]
[null,"項目名","物理名","型","必須","備考"]
[null,"選考レコード番号","record_no","number","〇"]

{"sheet":"2","index":3,"n_rows":4,"n_cols":3,"rows_kept":4,"cut":false,"hidden":false,"merged":[]}
[{"$f":"HYPERLINK(\"#一覧!A1\",\"一覧へ\")","v":"一覧へ"}]
[]
[]
[null,null,"詳細は「メール一覧」設計書を参照"]

{"sheet":"3","index":4,"n_rows":15,"n_cols":6,"rows_kept":15,"cut":false,"hidden":false,"merged":[]}
[{"$f":"HYPERLINK(\"#一覧!A1\",\"一覧へ\")","v":"一覧へ"}]
[null,"項目名","物理名","型","必須","備考"]
[null,"入金予定・結果レコード番号","record_no","number[]","〇"]
{"$rows_empty":10}
[null,"入金単位で領収証を発行する"]
[null,"１入金で複数の入金予定が消込した場合は、消込した入金予定が１つの領収証にまとまる。"]